bitfinex-derivatives/quotes_SOLF0:USTF0_20260213
["timestamp","ask_amount","ask_price","bid_price","bid_amount"]
[1770989429160,173.1627,80.91,80.658,173.7024]
[1770989429361,173.1362,80.922,80.756,173.4906]
[1770989429558,172.9563,81.006,80.679,37.4]
[1770989429559,173.1714,80.906,80.679,37.4]
[1770989429757,11.1303,80.921,80.764,173.4732]
[1770989429954,173.1482,80.917,80.747,173.5105]
[1770989430157,116.34,80.895,80.747,173.5094]
[1770989430356,173.0877,80.945,80.781,173.4363]
[1770989430560,173.163,80.91,80.753,173.4979]
[1770989430762,173.2019,80.892,80.731,173.5445]
[1770989431065,11.1343,80.892,80.735,173.5354]
[1770989431254,173.2078,80.889,80.72,173.5676]
[1770989431459,116.54,80.878,80.727,173.5524]
[1770989431656,116.52,80.877,80.727,173.5524]
[1770989431863,173.2505,80.869,80.709,173.5917]
[1770989432055,173.2683,80.861,80.701,173.6081]
[1770989432261,173.2852,80.853,80.702,11.1604]
[1770989432460,173.3012,80.845,80.702,11.1604]
[1770989432660,11.1397,80.853,80.702,11.1604]
[1770989432864,173.29,80.85,80.702,11.1604]
[1770989433261,11.1401,80.85,80.702,11.1604]
[1770989433871,11.1366,80.875,80.707,173.5955]
[1770989434165,173.2426,80.873,80.705,173.5997]
[1770989434357,173.2426,80.873,80.624,173.7742]
[1770989434358,184.3795,80.873,80.715,11.1586]
[1770989434565,11.1369,80.873,80.715,184.7373]
[1770989434764,290.2632,80.872,80.715,11.1586]
[1770989434959,173.3399,80.827,80.658,173.7025]
[1770989435164,117.16,80.849,80.69,173.6326]
[1770989435370,117.16,80.849,80.694,173.6246]
[1770989435565,9.874e-05,80.879,80.717,173.574]
[1770989435770,173.2495,80.869,80.701,173.6093]
[1770989436067,118.14,80.868,80.716,173.5759]
[1770989436274,118.14,80.868,80.723,173.5623]
[1770989436466,9.874e-05,80.879,80.734,11.156]
[1770989436971,184.3697,80.877,80.715,173.5791]
[1770989437165,118.4,80.878,80.718,173.5716]
[1770989437362,118.4,80.878,80.645,82.14]
[1770989437567,118.4,80.878,80.73,11.1565]
[1770989437970,291.6317,80.878,80.718,173.5731]
[1770989438172,118.4,80.878,80.716,173.5768]
[1770989438369,173.2637,80.863,80.704,173.602]
[1770989438570,173.2952,80.848,80.733,11.1561]
[1770989438771,118.82,80.847,80.7,173.611]
[1770989438970,173.3075,80.842,80.68,22.3269]
[1770989439171,173.3075,80.842,80.68,195.9808]
[1770989439372,173.2937,80.849,80.681,173.6515]
[1770989439570,173.3856,80.806,80.647,173.7246]
[1770989439773,173.4078,80.796,80.628,173.767]
[1770989439978,173.4529,80.775,80.597,173.8323]
[1770989440274,173.5135,80.746,80.627,11.1707]
[1770989440483,173.5159,80.745,80.588,173.8517]
[1770989440679,173.521,80.743,80.585,173.8587]
[1770989440876,173.521,80.743,80.577,173.8761]
[1770989440877,173.5246,80.741,80.58,173.8694]
[1770989441179,11.1635,80.68,80.57,173.8914]
[1770989441381,173.5629,80.723,80.597,11.175]
[1770989441678,22.3113,80.738,80.545,173.9459]
[1770989441679,11.1657,80.664,80.545,173.9459]
[1770989441880,11.1657,80.664,80.579,11.1775]
[1770989442081,173.6171,80.698,80.579,11.1775]
[1770989442274,173.6864,80.666,80.51,174.0212]
[1770989442577,173.691,80.664,80.544,11.1823]
[1770989442781,11.1712,80.625,80.544,11.1823]
[1770989443085,115.7,80.624,80.557,11.1805]
[1770989443283,115.7,80.624,80.507,174.0273]
[1770989443582,115.7,80.624,80.544,11.1823]
[1770989443779,115.76,80.65,80.518,174.0035]
[1770989443978,11.1682,80.647,80.522,173.9957]
[1770989444173,11.1682,80.647,80.559,11.1802]
[1770989444380,11.1682,80.647,80.509,174.0232]
[1770989444381,115.76,80.65,80.496,174.0501]
[1770989444578,11.1734,80.609,80.481,174.084]
[1770989444888,11.1734,80.609,80.462,174.1253]
[1770989444889,173.7893,80.618,80.462,174.1253]
[1770989445070,11.1775,80.579,80.44,174.1715]
[1770989445274,173.8555,80.587,80.426,174.202]
[1770989445476,173.8366,80.596,80.422,174.2109]
[1770989445477,173.878,80.577,80.422,174.2109]
[1770989445677,11.1821,80.546,80.441,11.1966]
[1770989445877,173.8765,80.578,80.441,11.1966]
[1770989446071,173.7949,80.616,80.438,174.1769]
[1770989446271,173.8642,80.583,80.426,174.2034]
[1770989446477,173.9205,80.557,80.399,174.2602]
[1770989446678,116.92,80.556,80.435,11.1974]
[1770989446882,116.92,80.556,80.394,174.2712]
[1770989446883,173.9421,80.547,80.391,174.2789]
[1770989447179,11.1856,80.521,80.386,174.2883]
[1770989447383,173.9089,80.563,80.407,174.243]
[1770989447579,173.883,80.575,80.418,174.2202]
[1770989447786,173.9102,80.562,80.405,174.2485]
[1770989447981,173.9102,80.562,80.375,174.3124]
[1770989447982,173.9421,80.547,80.377,174.3096]
[1770989448186,11.1907,80.484,80.348,174.372]
[1770989448386,174.0244,80.509,80.342,174.3855]
[1770989448387,117.58,80.483,80.342,174.3855]
[1770989448589,117.88,80.482,80.342,174.3843]
[1770989448788,173.9983,80.521,80.385,11.2045]
[1770989448987,118.04,80.52,80.385,11.2045]
[1770989449189,118.22,80.519,80.367,174.3302]
[1770989449389,174.0143,80.514,80.387,11.2041]
[1770989449581,174.0132,80.514,80.387,11.2041]
[1770989449785,11.1909,80.483,80.343,174.383]
[1770989450086,118.66,80.513,80.37,11.2064]
[1770989450282,11.1882,80.503,80.368,174.3291]
[1770989450585,11.1882,80.503,80.356,174.3553]
[1770989450586,11.1882,80.503,80.386,11.2043]
[1770989450787,11.1882,80.503,80.378,174.3065]
[1770989450975,11.1884,80.501,80.345,174.379]
[1770989451181,174.0687,80.489,80.328,174.4159]
[1770989451489,11.1924,80.472,80.337,174.3962]
[1770989451785,119.32,80.48,80.362,174.3412]
[1770989452085,173.9411,80.548,80.39,174.2813]
[1770989452284,173.9604,80.539,80.379,174.3038]
[1770989452484,173.9992,80.521,80.364,174.3371]
[1770989452682,11.1901,80.489,80.383,11.2047]
[1770989452886,119.8,80.488,80.383,11.2047]
[1770989453082,11.1908,80.484,80.383,11.2047]
[1770989453285,119.92,80.483,80.357,174.3513]
[1770989453489,119.92,80.483,80.076,99.22544591]
[1770989453490,174.0814,80.483,80.324,174.4242]
[1770989453688,174.059,80.493,80.368,11.2067]
[1770989453885,120.1,80.492,80.368,11.2067]
[1770989454088,174.0756,80.486,80.368,11.2067]
[1770989454384,174.1002,80.474,80.351,11.2091]
[1770989454586,174.081,80.483,80.351,11.2091]
[1770989454791,174.1144,80.468,80.351,11.2091]
[1770989454990,294.1959,80.485,80.351,11.2091]
[1770989455180,11.1952,80.452,80.351,11.2091]
[1770989455375,120.52,80.451,80.368,11.2068]
[1770989455785,11.1956,80.449,80.352,11.209]
[1770989455976,120.52,80.451,80.321,174.4312]
[1770989456184,131.7153,80.451,80.319,174.4342]
[1770989456487,131.7153,80.451,80.336,174.3972]
[1770989456687,131.7153,80.451,80.335,174.4008]
[1770989457391,131.7153,80.451,80.365,11.2072]
[1770989457688,120.52,80.451,80.365,11.2072]
[1770989457890,120.52,80.451,80.348,11.2096]
[1770989458283,174.1813,80.437,80.282,174.5154]
[1770989458487,174.1501,80.451,80.32,11.2135]
[1770989458685,11.1988,80.426,80.311,174.4528]
[1770989458882,11.1988,80.426,80.303,174.4703]
[1770989459082,11.1988,80.426,80.347,11.2097]
[1770989459282,11.1988,80.426,80.3,174.4769]
[1770989459484,11.1988,80.426,80.273,174.5344]
[1770989459485,11.1988,80.426,80.346,11.2098]
[1770989459692,11.1965,80.443,80.326,174.4185]
[1770989459888,120.92,80.442,80.322,174.4278]
[1770989460088,120.92,80.442,80.305,174.4659]
[1770989460292,120.92,80.442,80.313,174.4472]
[1770989460483,120.92,80.442,80.319,174.4353]
[1770989460792,11.1967,80.441,80.321,174.4307]
[1770989460995,120.98,80.44,80.331,174.4092]
[1770989461290,120.94,80.439,80.362,11.2075]
[1770989461588,120.94,80.439,80.311,37.4]
[1770989461589,120.94,80.439,80.322,174.427]
[1770989461888,120.94,80.439,80.296,174.4837]
[1770989462091,120.94,80.439,80.307,174.4596]
[1770989462286,11.1973,80.437,80.347,11.2097]
[1770989462485,174.195,80.43,80.261,174.5596]
[1770989462785,11.2037,80.391,80.272,174.5369]
[1770989462984,121.24,80.39,80.261,174.5599]
[1770989463290,121.24,80.39,80.275,174.5308]
[1770989463492,174.1827,80.436,80.279,174.5224]
[1770989463792,174.1143,80.468,80.313,174.448]
[1770989463989,11.1986,80.427,80.305,174.4655]
[1770989464178,174.1286,80.461,80.29,174.4971]
[1770989464384,174.134,80.459,80.302,174.4724]
[1770989464780,174.0902,80.479,80.311,174.4514]
[1770989464993,121.92,80.478,80.326,174.4198]
[1770989465185,174.0728,80.487,80.329,174.4135]
[1770989465391,122.22,80.486,80.341,37.4]
[1770989465686,174.0643,80.491,80.346,37.4]
[1770989465891,11.1952,80.452,80.378,11.2054]
[1770989466286,174.0811,80.483,80.365,11.2071]
[1770989466484,122.44,80.49,80.337,174.3965]
[1770989466787,11.1915,80.479,80.359,37.4]
[1770989466984,174.0526,80.496,80.334,174.4029]
[1770989467290,122.68,80.51,80.39,11.2038]
[1770989467492,174.0478,80.498,80.39,11.2038]
[1770989467689,122.98,80.497,80.332,174.4064]
[1770989467893,11.1947,80.456,80.34,174.3899]
[1770989468189,123.22,80.455,80.342,174.3855]
[1770989468395,11.1909,80.483,80.367,174.331]
[1770989468690,123.18,80.482,80.347,174.3741]
[1770989468889,123.1,80.481,80.416,11.2]
[1770989469594,11.1914,80.48,80.416,11.2]
[1770989469791,173.955,80.541,80.385,174.2913]
[1770989469994,173.955,80.541,80.374,174.316]
[1770989469995,123.26,80.54,80.394,174.2709]
[1770989470191,123.26,80.54,80.387,174.2879]
[1770989470192,123.26,80.54,80.381,174.3001]
[1770989470494,173.9394,80.549,80.388,174.2841]
[1770989470686,123.82,80.548,80.393,174.273]
[1770989470888,11.1869,80.512,80.403,174.2532]
[1770989471190,173.9054,80.564,80.408,174.2413]
[1770989471390,173.8973,80.568,80.41,174.237]
[1770989471592,11.1846,80.528,80.457,11.1943]
[1770989471791,173.8572,80.587,80.399,174.2618]
[1770989471996,173.8957,80.569,80.413,174.2313]
[1770989472195,173.9112,80.562,80.405,196.652]
[1770989472390,124.74,80.561,80.411,174.2348]
[1770989472693,11.1874,80.508,80.391,174.2778]
[1770989472897,173.9583,80.54,80.383,174.2963]
[1770989473196,125.1,80.539,80.383,22.4094]
[1770989473392,173.9648,80.537,80.383,22.4094]
[1770989473694,173.9648,80.537,80.369,174.3254]
[1770989473695,11.1902,80.488,80.373,174.3174]
[1770989473890,125.26,80.487,80.375,174.314]
[1770989474086,125.26,80.487,80.381,174.3004]
[1770989474287,125.34,80.496,80.392,174.2766]
[1770989474498,125.34,80.496,80.363,208.08]
[1770989474499,173.9064,80.564,80.405,174.2488]
[1770989474794,173.9064,80.564,80.363,208.08]
[1770989474795,173.956,80.541,80.384,174.2944]
[1770989474986,125.56,80.54,80.425,11.1988]
[1770989475183,173.9254,80.555,80.385,174.2909]
[1770989475390,173.9402,80.548,80.387,174.2872]
[1770989475693,11.1882,80.502,80.395,174.2689]
[1770989475892,125.98,80.503,80.339,174.3921]
[1770989476092,522.1911,80.491,80.286,174.5057]
[1770989476293,522.1911,80.491,80.278,174.5235]
[1770989476294,174.0988,80.475,80.303,174.4693]
[1770989476496,174.1004,80.474,80.319,174.4352]
[1770989476692,11.1966,80.442,80.373,11.206]
[1770989477287,173.9996,80.521,80.341,174.3859]
[1770989477501,126.64,80.52,80.369,174.325]
[1770989477694,174.0136,80.514,80.358,174.3503]
[1770989477896,11.1929,80.468,80.405,11.2015]
[1770989478096,174.0489,80.498,80.339,174.3905]
[1770989478295,174.0489,80.498,80.326,174.4196]
[1770989478296,174.1112,80.469,80.308,174.4581]
[1770989478499,11.2003,80.415,80.349,11.2095]
[1770989479200,174.0561,80.495,80.329,174.413]
[1770989479397,174.0919,80.478,80.319,174.4347]
[1770989479603,174.0919,80.478,80.296,174.4852]
[1770989479604,174.1476,80.452,80.297,174.4823]
[1770989479905,127.36,80.451,80.297,174.4823]
[1770989480105,127.46,80.45,80.319,174.4351]
[1770989480407,127.46,80.45,80.315,174.4438]
[1770989480601,22.3793,80.492,80.335,174.3996]
[1770989480807,127.88,80.491,80.338,174.3934]
[1770989481001,174.0663,80.49,80.332,174.4069]
[1770989481204,11.1964,80.444,80.378,11.2053]
[1770989481408,174.0873,80.48,80.327,22.4251]
[1770989481906,11.1965,80.443,80.376,11.2056]
[1770989482110,127.88,80.491,80.346,174.3762]
[1770989482408,174.0282,80.508,80.352,174.3626]
[1770989482600,174.0162,80.513,80.347,211.64]
[1770989482601,174.045,80.5,80.347,211.64]
[1770989482802,196.4023,80.508,80.352,174.3626]
[1770989483001,11.1921,80.474,80.412,11.2007]
[1770989483200,173.9686,80.535,80.372,174.3197]
[1770989483396,173.9766,80.531,80.372,174.3193]
[1770989483600,174.0101,80.516,80.366,22.4142]
[1770989483806,173.9973,80.522,80.366,22.4142]
[1770989484003,11.1915,80.479,80.412,11.2006]
[1770989484308,11.1915,80.479,80.366,22.4142]
[1770989484309,132.28,80.521,80.366,22.4142]
[1770989484506,174.0079,80.517,80.366,22.4142]
[1770989484709,22.3739,80.511,80.347,211.64]
[1770989484906,174.0529,80.496,80.347,211.64]
[1770989485100,174.0059,80.518,80.351,174.3642]
[1770989485408,135.42,80.517,80.377,174.3094]
[1770989485807,174.0143,80.514,80.351,174.3661]
[1770989486102,174.0143,80.514,80.359,174.348]
[1770989486308,136.18,80.513,80.343,174.3818]
[1770989486607,136.18,80.513,80.361,174.3433]
[1770989486909,11.1912,80.481,80.37,174.3231]
[1770989487111,136.18,80.513,80.353,174.3608]
[1770989487112,136.68,80.48,80.38,174.3012]
[1770989487302,136.68,80.479,80.373,174.3184]
[1770989487498,136.68,80.478,80.375,22.4116]
[1770989487910,136.74,80.478,80.377,174.3096]
[1770989488209,136.74,80.478,80.354,174.3574]
[1770989488403,136.74,80.478,80.356,174.3546]
[1770989488599,136.74,80.478,80.363,174.3382]
[1770989489010,136.74,80.478,80.384,174.2942]
[1770989489199,22.3668,80.537,80.373,37.33]
[1770989489406,11.1906,80.485,80.427,11.1986]
[1770989489605,136.72,80.485,80.427,11.1986]
[1770989489809,22.3668,80.537,80.385,174.2914]
[1770989490107,136.88,80.536,80.394,22.4064]
[1770989490408,136.88,80.536,80.392,37.33]
[1770989490616,11.1882,80.502,80.399,22.405]
[1770989490813,137.56,80.507,80.402,174.255]
[1770989491005,248.68,80.556,80.413,174.2297]
[1770989491206,137.56,80.555,80.45,11.1954]
[1770989491411,173.9704,80.534,80.377,174.3093]
[1770989491613,173.9545,80.542,80.378,174.3072]
[1770989491816,173.9642,80.537,80.378,174.3072]
[1770989492115,11.1907,80.484,80.421,11.1994]
[1770989492414,138.32,80.483,80.421,11.1994]
[1770989492611,138.32,80.483,80.388,22.4081]
[1770989493014,138.28,80.483,80.388,22.4081]
[1770989493210,138.26,80.492,80.442,11.1964]
[1770989493413,138.26,80.492,80.386,211.6181]
[1770989493612,138.26,80.492,80.389,174.2825]
[1770989493812,138.26,80.492,80.393,22.4067]
[1770989494119,11.1873,80.509,80.405,174.2484]
[1770989494320,11.1873,80.509,80.397,174.2658]
[1770989494321,11.1873,80.509,80.45,11.1954]
[1770989494912,173.9126,80.561,80.411,22.4015]
[1770989495220,138.18,80.56,80.407,174.2429]
[1770989495415,11.1859,80.519,80.416,37.33]
[1770989495721,22.362,80.555,80.404,174.2509]
[1770989496020,22.362,80.555,80.393,174.275]
[1770989496021,22.362,80.555,80.417,174.2228]
[1770989496220,138.74,80.554,80.412,174.2337]
[1770989496710,11.1876,80.507,80.394,174.2717]
[1770989496915,11.1876,80.507,80.398,174.2632]
[1770989497112,139.36,80.508,80.391,174.2788]
[1770989497312,139.3,80.507,80.379,174.3043]
[1770989497516,139.3,80.507,80.389,174.2837]
[1770989497715,11.1904,80.487,80.437,11.1972]
[1770989497918,139.3,80.507,80.39,174.2814]
[1770989498315,11.1892,80.495,80.445,11.196]
[1770989498714,139.28,80.5,80.399,22.405]
[1770989498919,22.3672,80.536,80.4,174.2593]
[1770989499115,139.32,80.535,80.392,174.2753]
[1770989499317,139.32,80.535,80.396,174.268]
[1770989499519,139.32,80.535,80.411,22.4016]
[1770989499716,173.8822,80.575,80.396,174.2672]
[1770989499918,173.9032,80.565,80.403,174.2513]
[1770989500220,185.93361944,80.576,80.437,174.1777]
[1770989500423,185.93361944,80.576,80.439,174.1753]
[1770989500620,11.183,80.54,80.45,22.3908]
[1770989501016,140.5,80.575,80.477,11.1917]
[1770989501214,140.5,80.575,80.442,174.1684]
[1770989501411,185.93361944,80.576,80.45,174.1495]
[1770989501611,140.96,80.575,80.451,174.1476]
[1770989501822,140.98,80.574,80.503,11.188]
[1770989502021,140.98,80.574,80.452,22.3901]
[1770989502518,140.98,80.574,80.473,11.1922]
[1770989502822,173.8961,80.569,80.428,22.3969]
[1770989503212,173.9052,80.564,80.455,11.1946]
[1770989503413,141.3,80.563,80.455,11.1946]
[1770989503723,22.3599,80.562,80.414,174.2286]
[1770989503923,141.4,80.561,80.425,174.2052]
[1770989504315,22.3532,80.586,80.428,174.1982]
[1770989504519,22.3532,80.586,80.438,174.177]
[1770989504824,11.1814,80.552,80.494,11.1892]
[1770989505124,142.2,80.563,80.451,174.1485]
[1770989505312,11.18,80.561,80.505,11.1876]
[1770989505516,11.18,80.561,80.466,22.3863]
[1770989505815,142.14,80.565,80.423,174.2089]
[1770989506013,11.1824,80.544,80.49,11.1897]
[1770989506323,22.3469,80.609,80.449,174.1534]
[1770989506625,22.3469,80.609,80.441,174.1708]
[1770989506626,11.1813,80.552,80.452,22.3903]
[1770989506825,22.3492,80.6,80.452,174.1468]
[1770989507021,11.1798,80.563,80.499,11.1885]
[1770989507421,22.3492,80.6,80.461,174.1277]
[1770989507626,11.1789,80.569,80.465,22.3865]
[1770989507828,11.1789,80.569,80.465,174.1186]
[1770989508326,142.4,80.584,80.448,226.16]
[1770989508526,142.24,80.583,80.448,226.16]
[1770989509022,11.1811,80.553,80.496,11.1889]
[1770989509322,11.1826,80.543,80.489,11.19]
[1770989509527,142.48,80.565,80.448,226.16]
[1770989509921,142.48,80.565,80.449,22.391]
[1770989510224,142.48,80.565,80.418,226.5]
[1770989510430,11.1871,80.51,80.453,11.195]
[1770989510622,142.68,80.52,80.423,22.3981]
[1770989510825,142.68,80.527,80.423,22.3981]
[1770989511022,11.1858,80.52,80.423,22.3981]
[1770989511218,142.68,80.527,80.39,227.0]
[1770989511429,142.68,80.527,80.402,174.2546]
[1770989511625,173.9369,80.55,80.385,174.2904]
[1770989511827,22.3642,80.546,80.407,22.4026]
[1770989512028,142.88,80.545,80.452,11.1951]
[1770989512226,143.0,80.544,80.452,11.1951]
[1770989512632,143.0,80.544,80.418,22.3996]
[1770989512633,22.3621,80.554,80.461,11.1939]
[1770989512833,36.49292233,80.54,80.418,22.3996]
[1770989513321,36.49292233,80.52,80.396,174.2679]
[1770989513638,143.16,80.519,80.412,174.2327]
[1770989513824,143.1,80.518,80.46,11.1939]
[1770989514331,11.1879,80.505,80.46,11.1939]
[1770989514530,143.18,80.518,80.415,22.4006]
[1770989514921,143.18,80.518,80.41,36.49292233]
[1770989515129,36.49292233,80.5,80.43,11.1982]
[1770989515435,143.24,80.499,80.394,22.4064]
[1770989516033,36.49292233,80.48,80.372,22.4123]
[1770989516243,36.49292233,80.46,80.323,174.4263]
[1770989516532,143.3,80.459,80.33,36.49292233]
[1770989516721,36.49292233,80.46,80.33,36.49292233]
[1770989516928,143.4,80.459,80.35,36.49292233]
[1770989517134,143.38,80.458,80.33,36.49292233]
[1770989517533,11.197,80.439,80.366,11.207]
[1770989518131,11.1954,80.451,80.375,11.2058]
[1770989518332,11.1954,80.451,80.35,36.49292233]
[1770989518638,36.49292233,80.5,80.39,36.49292233]
[1770989518831,143.44,80.499,80.39,36.49292233]
[1770989519032,143.44,80.499,80.411,11.2008]
[1770989519835,11.1909,80.483,80.42,11.1995]
[1770989520238,36.49292233,80.53,80.41,36.49292233]
[1770989520441,143.4,80.529,80.427,11.1986]
[1770989520940,11.1925,80.472,80.406,11.2014]
[1770989521434,11.1925,80.472,80.415,11.2002]
[1770989521636,36.49292233,80.51,80.39,36.49292233]
[1770989521834,143.54,80.509,80.39,36.49292233]
[1770989522036,36.49292233,80.53,80.39,36.49292233]
[1770989522340,11.1897,80.492,80.434,11.1975]
[1770989522630,11.1878,80.505,80.44,11.1967]
[1770989522838,36.49292233,80.56,80.43,36.49292233]
[1770989523039,36.49292233,80.54,80.411,22.4017]
[1770989523227,11.1879,80.504,80.441,11.1966]
[1770989523432,143.58,80.526,80.41,36.49292233]
[1770989523633,36.49292233,80.52,80.41,36.49292233]
[1770989523833,11.1906,80.485,80.427,11.1985]
[1770989524234,174.0049,80.518,80.39,36.49292233]
[1770989524429,143.46,80.517,80.39,36.49292233]
[1770989525031,36.49292233,80.52,80.39,36.49292233]
[1770989525232,173.9043,80.565,80.41,36.49292233]
[1770989525233,143.48,80.527,80.41,36.49292233]
[1770989525633,173.9043,80.565,80.371,225.44]
[1770989525634,36.49292233,80.57,80.44,36.49292233]
[1770989525839,173.8971,80.568,80.44,36.49292233]
[1770989526040,36.49292233,80.55,80.42,36.49292233]
[1770989526238,36.49292233,80.55,80.452,11.1951]
[1770989526638,11.1867,80.513,80.46,11.1939]
[1770989526831,143.42,80.558,80.46,9.52525768]
[1770989527037,9.52525768,80.58,80.46,9.52525768]
[1770989527038,9.52525768,80.56,80.46,9.52525768]
[1770989527346,11.1822,80.545,80.489,11.1899]
[1770989527648,9.52525768,80.56,80.46,9.52525768]
[1770989527842,11.1837,80.535,80.479,11.1912]
[1770989528443,11.1848,80.527,80.469,11.1927]
[1770989528742,9.52525768,80.56,80.46,9.52525768]
[1770989528941,9.52525768,80.56,80.487,11.1902]
[1770989529138,9.52525768,80.58,80.48,9.52525768]
[1770989529540,152.68525768,80.58,80.48,9.52525768]
[1770989529947,11.1817,80.549,80.497,11.1888]
[1770989530134,9.52525768,80.58,80.48,9.52525768]
[1770989530338,143.36,80.579,80.48,9.52525768]
[1770989530534,143.36,80.579,80.488,11.1901]
[1770989530535,11.1827,80.542,80.488,11.1901]
[1770989530942,143.36,80.579,80.488,11.1901]
[1770989531143,9.52525768,80.58,80.497,11.1888]
[1770989531446,143.6,80.598,80.5,9.52525768]
[1770989531843,9.52525768,80.58,80.48,9.52525768]
[1770989532245,11.182,80.547,80.498,11.1887]
[1770989532549,9.52525768,80.57,80.46,9.52525768]
[1770989533048,9.52525768,80.57,80.479,11.1913]
[1770989533245,9.52525768,80.57,80.46,9.52525768]
[1770989533246,9.52525768,80.55,80.46,9.52525768]
[1770989533749,9.52525768,80.53,80.44,9.52525768]
[1770989534047,9.52525768,80.55,80.44,9.52525768]
[1770989534355,11.187,80.511,80.456,11.1945]
[1770989534744,143.82,80.556,80.46,9.52525768]
[1770989534947,22.3561,80.576,80.46,9.52525768]
[1770989535150,143.8,80.569,80.46,9.52525768]
[1770989535348,22.3561,80.576,80.48,9.52525768]
[1770989535650,143.76,80.581,80.48,9.52525768]
[1770989535954,11.1816,80.55,80.48,9.52525768]
[1770989536154,143.78,80.584,80.47,9.52525768]
[1770989536449,173.9011,80.566,80.457,11.1944]
[1770989536650,9.52525768,80.54,80.457,11.1944]
[1770989536850,9.52525768,80.54,80.45,9.52525768]
[1770989537051,9.52525768,80.54,80.43,9.52525768]
[1770989537245,173.8784,80.577,80.45,9.52525768]
[1770989537443,11.1858,80.52,80.45,9.52525768]
[1770989537845,173.8009,80.613,80.47,9.52525768]
[1770989538153,11.1819,80.547,80.47,9.52525768]
[1770989538452,143.78,80.584,80.47,9.52525768]
[1770989539050,11.1819,80.548,80.499,11.1886]
[1770989539447,143.78,80.584,80.47,9.52525768]
[1770989539652,11.1819,80.547,80.498,11.1886]
[1770989540051,143.8,80.592,80.498,11.1886]
[1770989540351,9.52525768,80.57,80.47,9.52525768]
[1770989540746,9.52525768,80.57,80.497,11.1889]
[1770989540946,22.3534,80.585,80.49,9.52525768]
[1770989541652,11.1802,80.56,80.509,11.1871]
[1770989541853,9.52525768,80.58,80.458,22.3885]
[1770989542057,9.52525768,80.58,80.48,9.52525768]
[1770989542552,173.8863,80.573,80.385,174.2921]
[1770989542857,9.52525768,80.53,80.459,11.1941]
[1770989543048,9.52525768,80.51,80.411,22.4017]
[1770989543247,149.36,80.522,80.411,22.4017]
[1770989543647,11.1895,80.493,80.411,22.4017]
[1770989543852,11.1895,80.493,80.385,22.4089]
[1770989544154,9.52525768,80.51,80.39,9.52525768]
[1770989544353,149.38,80.509,80.37,9.52525768]
[1770989544751,149.38,80.509,80.418,11.1997]
[1770989544955,9.53779865,80.5,80.418,11.1997]
[1770989545355,11.1924,80.473,80.418,11.1997]
[1770989545552,9.53779865,80.5,80.407,11.2013]
[1770989545752,9.53779865,80.5,80.37,9.53779865]
[1770989545948,9.53779865,80.48,80.37,9.53779865]
[1770989546157,9.53779865,80.46,80.319,174.4351]
[1770989546455,11.1989,80.426,80.371,11.2063]
[1770989546856,9.53779865,80.48,80.38,9.53779865]
[1770989547251,9.53779865,80.5,80.4,9.53779865]
[1770989547450,9.53779865,80.5,80.343,174.3826]
[1770989547451,9.53779865,80.48,80.38,9.53779865]
[1770989548047,9.53779865,80.46,80.35,9.53779865]
[1770989548452,11.1975,80.435,80.373,11.206]
[1770989549052,11.1975,80.435,80.35,9.53779865]
[1770989549053,9.53779865,80.48,80.37,9.53779865]